[Event "Late-Titled-Tuesday-Blitz-June-04-2024"]
[Site "Chess.com"]
[Date "2024.06.04"]
[Round "2"]
[White "EsmeraldasAnderson03"]
[Black "BillCoe"]
[Result "1-0"]
[WhiteElo "2439"]
[BlackElo "2112"]
[TimeControl "180+1"]
[EndTime "14:15:54 PDT"]
[Termination "EsmeraldasAnderson03 won by resignation"]

1. d4 {[%clk 0:02:48.4]} 1... d5 {[%clk 0:02:59.4]} 2. c4 {[%clk 0:02:48.7]}
2... e6 {[%clk 0:02:59.5]} 3. cxd5 {[%clk 0:02:49.4]} 3... exd5 {[%clk
0:03:00.3]} 4. Nc3 {[%clk 0:02:50]} 4... c6 {[%clk 0:03:00.8]} 5. Nf3 {[%clk
0:02:48.9]} 5... Bf5 {[%clk 0:03:00.7]} 6. Qb3 {[%clk 0:02:43.5]} 6... Qb6
{[%clk 0:03:00.1]} 7. e3 {[%clk 0:02:40.2]} 7... Nf6 {[%clk 0:02:59.3]} 8. Be2
{[%clk 0:02:40.1]} 8... Be7 {[%clk 0:02:58]} 9. O-O {[%clk 0:02:40.7]} 9... O-O
{[%clk 0:02:57]} 10. Ne5 {[%clk 0:02:40]} 10... Nbd7 {[%clk 0:02:55.2]} 11. f4
{[%clk 0:02:40]} 11... Rfd8 {[%clk 0:02:48.7]} 12. g4 {[%clk 0:02:33.9]} 12...
Be4 {[%clk 0:02:48.3]} 13. g5 {[%clk 0:02:31.3]} 13... Ne8 {[%clk 0:02:45.2]}
14. Nxe4 {[%clk 0:02:31.7]} 14... Nxe5 {[%clk 0:02:44.3]} 15. fxe5 {[%clk
0:02:32.6]} 15... Qxb3 {[%clk 0:02:39.5]} 16. axb3 {[%clk 0:02:26.1]} 16... dxe4
{[%clk 0:02:38.6]} 17. Bc4 {[%clk 0:02:26.4]} 17... b5 {[%clk 0:02:11.2]} 18.
Bxf7+ {[%clk 0:01:54.4]} 18... Kh8 {[%clk 0:02:04.1]} 19. h4 {[%clk 0:01:54.4]}
19... g6 {[%clk 0:01:58.8]} 20. Bd2 {[%clk 0:01:50.9]} 20... Ng7 {[%clk
0:01:55.5]} 21. Kg2 {[%clk 0:01:39.2]} 21... Rf8 {[%clk 0:01:41.5]} 22. Kh3
{[%clk 0:01:34.6]} 22... Nf5 {[%clk 0:01:38.9]} 23. Be6 {[%clk 0:01:33.4]} 23...
Ng7 {[%clk 0:01:36.3]} 24. Bd7 {[%clk 0:01:32.8]} 24... Rf3+ {[%clk 0:01:26.9]}
25. Rxf3 {[%clk 0:01:32]} 25... exf3 {[%clk 0:01:27.8]} 26. Bxc6 {[%clk
0:01:29.8]} 26... Rf8 {[%clk 0:01:27.2]} 27. Rf1 {[%clk 0:01:24.6]} 27... f2
{[%clk 0:01:26.6]} 28. Bxb5 {[%clk 0:01:18]} 28... h6 {[%clk 0:01:03]} 29. gxh6
{[%clk 0:01:15.2]} 29... Nh5 {[%clk 0:01:02.4]} 30. Be2 {[%clk 0:00:57.1]} 30...
Kh7 {[%clk 0:01:01.9]} 31. d5 {[%clk 0:00:57]} 31... Kxh6 {[%clk 0:00:55.7]} 32.
d6 {[%clk 0:00:57.2]} 32... Bd8 {[%clk 0:00:55.8]} 33. e6 {[%clk 0:00:57.5]}
33... Rf6 {[%clk 0:00:48.3]} 34. e4+ {[%clk 0:00:50.2]} 1-0

[Event "Late-Titled-Tuesday-Blitz-June-04-2024"]
[Site "Chess.com"]
[Date "2024.06.04"]
[Round "2"]
[White "ural58"]
[Black "NikitaShnadrygin"]
[Result "0-1"]
[WhiteElo "2422"]
[BlackElo "2714"]
[TimeControl "180+1"]
[EndTime "14:15:56 PDT"]
[Termination "NikitaShnadrygin won by resignation"]

1. e4 {[%clk 0:02:54.2]} 1... c5 {[%clk 0:02:57.9]} 2. b3 {[%clk 0:02:52.4]}
2... Nc6 {[%clk 0:02:57.6]} 3. Bb2 {[%clk 0:02:52.1]} 3... a6 {[%clk 0:02:58.1]}
4. f4 {[%clk 0:02:49.2]} 4... e6 {[%clk 0:02:58.1]} 5. Nf3 {[%clk 0:02:48.5]}
5... d5 {[%clk 0:02:58.8]} 6. d3 {[%clk 0:02:41.7]} 6... dxe4 {[%clk 0:02:56.1]}
7. dxe4 {[%clk 0:02:41.6]} 7... Qxd1+ {[%clk 0:02:57]} 8. Kxd1 {[%clk
0:02:41.6]} 8... Nf6 {[%clk 0:02:57.9]} 9. Nbd2 {[%clk 0:02:39.9]} 9... b5
{[%clk 0:02:57.1]} 10. h3 {[%clk 0:02:37.8]} 10... Bb7 {[%clk 0:02:56.9]} 11. a4
{[%clk 0:02:33.4]} 11... b4 {[%clk 0:02:46.9]} 12. Bd3 {[%clk 0:02:19.5]} 12...
Na5 {[%clk 0:02:46.1]} 13. Ke2 {[%clk 0:02:16.9]} 13... Be7 {[%clk 0:02:38.6]}
14. Rhd1 {[%clk 0:02:15.2]} 14... O-O {[%clk 0:02:36.5]} 15. g3 {[%clk 0:02:14]}
15... Rfd8 {[%clk 0:02:33.7]} 16. e5 {[%clk 0:02:11.7]} 16... Nd5 {[%clk
0:02:33.6]} 17. Nc4 {[%clk 0:02:10.8]} 17... Nc6 {[%clk 0:02:32]} 18. a5 {[%clk
0:02:04.5]} 18... Rab8 {[%clk 0:02:26.1]} 19. Kf2 {[%clk 0:02:03.2]} 19... Nc3
{[%clk 0:02:19.5]} 20. Re1 {[%clk 0:01:52.9]} 20... Nd4 {[%clk 0:02:17.9]} 21.
Nxd4 {[%clk 0:01:51.2]} 21... cxd4 {[%clk 0:02:18]} 22. Nd2 {[%clk 0:01:32.5]}
22... Rbc8 {[%clk 0:02:12]} 23. Rac1 {[%clk 0:01:23.5]} 23... Rc5 {[%clk
0:01:53.8]} 24. Ra1 {[%clk 0:01:20]} 24... h5 {[%clk 0:01:51]} 25. h4 {[%clk
0:01:19.3]} 25... g6 {[%clk 0:01:50]} 26. Bxc3 {[%clk 0:01:16.6]} 26... dxc3
{[%clk 0:01:49.3]} 27. Nf3 {[%clk 0:01:09.5]} 27... Rcd5 {[%clk 0:01:46.9]} 28.
Be4 {[%clk 0:01:08]} 28... Rd2+ {[%clk 0:01:33.8]} 29. Nxd2 {[%clk 0:01:06.9]}
29... Rxd2+ {[%clk 0:01:34.7]} 30. Kf3 {[%clk 0:01:05.3]} 30... Bxe4+ {[%clk
0:01:32.4]} 31. Rxe4 {[%clk 0:01:06.2]} 31... Rxc2 {[%clk 0:01:33.3]} 32. Rc4
{[%clk 0:01:05.1]} 32... Rb2 {[%clk 0:01:32.2]} 33. Rc7 {[%clk 0:01:04.1]} 33...
Bf8 {[%clk 0:01:29.3]} 34. Rd1 {[%clk 0:01:03.9]} 34... Rxb3 {[%clk 0:01:24]}
35. Rd8 {[%clk 0:01:00.6]} 35... c2+ {[%clk 0:01:21.6]} 36. Ke2 {[%clk
0:00:39.8]} 36... Rc3 {[%clk 0:01:21.1]} 0-1

[Event "Late-Titled-Tuesday-Blitz-June-04-2024"]
[Site "Chess.com"]
[Date "2024.06.04"]
[Round "2"]
[White "ReadySkate"]
[Black "semchik90"]
[Result "1-0"]
[WhiteElo "2713"]
[BlackElo "2415"]
[TimeControl "180+1"]
[EndTime "14:15:56 PDT"]
[Termination "ReadySkate won by resignation"]

1. d4 {[%clk 0:03:00.9]} 1... d5 {[%clk 0:02:59.7]} 2. c4 {[%clk 0:03:01.1]}
2... c6 {[%clk 0:02:58.3]} 3. Nf3 {[%clk 0:03:00.5]} 3... Nf6 {[%clk 0:02:58.1]}
4. Nc3 {[%clk 0:03:00.7]} 4... dxc4 {[%clk 0:02:58.2]} 5. a4 {[%clk 0:03:00.4]}
5... Bf5 {[%clk 0:02:57.5]} 6. Ne5 {[%clk 0:03:00.6]} 6... Nbd7 {[%clk
0:02:56.9]} 7. Nxc4 {[%clk 0:03:00.8]} 7... Qc7 {[%clk 0:02:57.6]} 8. g3 {[%clk
0:03:01.1]} 8... e5 {[%clk 0:02:57.9]} 9. dxe5 {[%clk 0:03:01.6]} 9... Nxe5
{[%clk 0:02:52.7]} 10. Bf4 {[%clk 0:03:01.8]} 10... Rd8 {[%clk 0:02:52.4]} 11.
Qb3 {[%clk 0:02:47.1]} 11... Be6 {[%clk 0:02:06.4]} 12. Bxe5 {[%clk 0:02:14.4]}
12... Qxe5 {[%clk 0:02:05.3]} 13. Qxb7 {[%clk 0:02:14.3]} 13... Qc5 {[%clk
0:01:54.1]} 14. Ne3 {[%clk 0:02:06.8]} 14... Bd6 {[%clk 0:01:37.7]} 15. Bg2
{[%clk 0:02:04]} 15... Bd7 {[%clk 0:01:13.7]} 16. O-O {[%clk 0:01:56.5]} 16...
O-O {[%clk 0:00:58.6]} 17. Qa6 {[%clk 0:01:53.8]} 17... Rb8 {[%clk 0:00:39.9]}
18. Rab1 {[%clk 0:01:50.7]} 18... Rb4 {[%clk 0:00:35.1]} 19. Qd3 {[%clk
0:01:48]} 19... Be6 {[%clk 0:00:29.3]} 20. Rfc1 {[%clk 0:01:42.9]} 20... Rd4
{[%clk 0:00:23.4]} 21. Qa6 {[%clk 0:01:35.8]} 21... Bc8 {[%clk 0:00:22.2]} 22.
Qxc6 {[%clk 0:01:33.5]} 22... Qb4 {[%clk 0:00:18.4]} 23. Ncd5 {[%clk 0:01:27.4]}
23... Nxd5 {[%clk 0:00:16.9]} 24. Nxd5 {[%clk 0:01:28.3]} 24... Qb3 {[%clk
0:00:14.4]} 25. Qxd6 {[%clk 0:01:26.4]} 25... Qxa4 {[%clk 0:00:08.7]} 26. Qxf8+
{[%clk 0:01:20.3]} 26... Kxf8 {[%clk 0:00:08.6]} 27. Rxc8+ {[%clk 0:01:21.2]}
1-0

[Event "Late-Titled-Tuesday-Blitz-June-04-2024"]
[Site "Chess.com"]
[Date "2024.06.04"]
[Round "2"]
[White "AsaHoffmann"]
[Black "Mikhail_Golubev"]
[Result "0-1"]
[WhiteElo "2265"]
[BlackElo "2504"]
[TimeControl "180+1"]
[EndTime "14:15:56 PDT"]
[Termination "Mikhail_Golubev won by resignation"]

1. d4 {[%clk 0:02:49.5]} 1... Nf6 {[%clk 0:02:58]} 2. Bg5 {[%clk 0:02:46.5]}
2... d5 {[%clk 0:02:57.1]} 3. Nd2 {[%clk 0:02:46]} 3... Nbd7 {[%clk 0:02:52.1]}
4. e3 {[%clk 0:02:45.4]} 4... g6 {[%clk 0:02:49.1]} 5. f4 {[%clk 0:02:43.9]}
5... Bg7 {[%clk 0:02:41.9]} 6. Ngf3 {[%clk 0:02:43.5]} 6... a6 {[%clk 0:02:28]}
7. Bd3 {[%clk 0:02:43.1]} 7... c5 {[%clk 0:02:23.3]} 8. c3 {[%clk 0:02:42.8]}
8... b5 {[%clk 0:02:20.8]} 9. O-O {[%clk 0:02:42.3]} 9... Bb7 {[%clk 0:02:04.7]}
10. Ne5 {[%clk 0:02:41.9]} 10... Qc7 {[%clk 0:01:50.4]} 11. Qf3 {[%clk
0:02:41.2]} 11... c4 {[%clk 0:01:29.9]} 12. Bc2 {[%clk 0:02:40]} 12... e6 {[%clk
0:01:17.1]} 13. e4 {[%clk 0:02:35.2]} 13... dxe4 {[%clk 0:01:14.3]} 14. Nxe4
{[%clk 0:02:34.1]} 14... Nxe4 {[%clk 0:01:01.3]} 15. Bxe4 {[%clk 0:02:33.5]}
15... Bxe4 {[%clk 0:01:01.7]} 16. Qxe4 {[%clk 0:02:33.3]} 16... O-O {[%clk
0:01:02.3]} 17. a4 {[%clk 0:02:22.8]} 17... Nb6 {[%clk 0:00:58.5]} 18. axb5
{[%clk 0:02:17.6]} 18... f6 {[%clk 0:00:55.2]} 19. Nc6 {[%clk 0:02:06.5]} 19...
fxg5 {[%clk 0:00:52.1]} 20. Qxe6+ {[%clk 0:02:05.4]} 20... Kh8 {[%clk
0:00:50.9]} 21. fxg5 {[%clk 0:02:04]} 21... Rxf1+ {[%clk 0:00:46.4]} 22. Rxf1
{[%clk 0:02:01.1]} 22... axb5 {[%clk 0:00:34.8]} 23. Rf7 {[%clk 0:01:53.3]}
23... Qc8 {[%clk 0:00:20.6]} 24. Qxc8+ {[%clk 0:01:40.1]} 24... Rxc8 {[%clk
0:00:19.2]} 25. Ne7 {[%clk 0:01:38.2]} 25... Rf8 {[%clk 0:00:17.7]} 26. Rxf8+
{[%clk 0:01:35.1]} 26... Bxf8 {[%clk 0:00:18.6]} 27. Nc6 {[%clk 0:01:33.8]}
27... Na4 {[%clk 0:00:17.9]} 28. Na7 {[%clk 0:01:32.4]} 28... b4 {[%clk
0:00:17.9]} 29. Nc6 {[%clk 0:01:27.4]} 29... Nxb2 {[%clk 0:00:14.2]} 30. cxb4
{[%clk 0:01:25.5]} 30... c3 {[%clk 0:00:14.2]} 31. Ne5 {[%clk 0:01:24.1]} 31...
c2 {[%clk 0:00:13.8]} 32. Nd3 {[%clk 0:01:23.2]} 32... Nxd3 {[%clk 0:00:13.2]}
0-1

[Event "Late-Titled-Tuesday-Blitz-June-04-2024"]
[Site "Chess.com"]
[Date "2024.06.04"]
[Round "2"]
[White "Nf3c5"]
[Black "Shankland"]
[Result "0-1"]
[WhiteElo "2602"]
[BlackElo "2963"]
[TimeControl "180+1"]
[EndTime "14:16:00 PDT"]
[Termination "Shankland won by resignation"]

1. e4 {[%clk 0:03:00.9]} 1... c5 {[%clk 0:02:58.5]} 2. Nc3 {[%clk 0:02:59.5]}
2... Nc6 {[%clk 0:02:57.7]} 3. Bb5 {[%clk 0:02:59.3]} 3... Nd4 {[%clk
0:02:57.2]} 4. Nf3 {[%clk 0:02:57.9]} 4... e6 {[%clk 0:02:57.5]} 5. O-O {[%clk
0:02:57.2]} 5... a6 {[%clk 0:02:55.9]} 6. Bd3 {[%clk 0:02:56.2]} 6... Nc6 {[%clk
0:02:55.5]} 7. b3 {[%clk 0:02:36.2]} 7... Nf6 {[%clk 0:02:51.2]} 8. Bb2 {[%clk
0:02:35.6]} 8... Be7 {[%clk 0:02:51.4]} 9. h3 {[%clk 0:02:28.3]} 9... O-O {[%clk
0:02:50.8]} 10. e5 {[%clk 0:02:27.5]} 10... Nd5 {[%clk 0:02:45.8]} 11. Re1
{[%clk 0:02:22]} 11... Nf4 {[%clk 0:02:33.5]} 12. Bf1 {[%clk 0:02:19.3]} 12...
f6 {[%clk 0:02:27.6]} 13. Ne4 {[%clk 0:01:58.1]} 13... fxe5 {[%clk 0:02:25.1]}
14. Nxe5 {[%clk 0:01:58.5]} 14... Nxe5 {[%clk 0:02:19.8]} 15. Bxe5 {[%clk
0:01:59.4]} 15... d5 {[%clk 0:02:19.8]} 16. Ng3 {[%clk 0:01:58.1]} 16... Bd6
{[%clk 0:02:11.9]} 17. d4 {[%clk 0:01:53.9]} 17... Bxe5 {[%clk 0:02:07.2]} 18.
Rxe5 {[%clk 0:01:52.6]} 18... Qf6 {[%clk 0:02:05.4]} 19. Qd2 {[%clk 0:01:52.8]}
19... cxd4 {[%clk 0:01:57.3]} 20. Rae1 {[%clk 0:01:44.5]} 20... Ng6 {[%clk
0:01:51.8]} 21. Nh5 {[%clk 0:01:40.3]} 21... Qh4 {[%clk 0:01:48.9]} 22. Rg5
{[%clk 0:01:30.2]} 22... Rxf2 {[%clk 0:01:47.3]} 23. Qxf2 {[%clk 0:01:05.7]}
23... Qxg5 {[%clk 0:01:46.5]} 24. g4 {[%clk 0:00:47.9]} 24... e5 {[%clk
0:01:44.7]} 25. Bg2 {[%clk 0:00:48.6]} 25... Be6 {[%clk 0:01:43.4]} 26. Qg3
{[%clk 0:00:44.5]} 26... Rf8 {[%clk 0:01:40.5]} 27. c3 {[%clk 0:00:42.5]} 27...
Qd2 {[%clk 0:01:25.9]} 28. Rxe5 {[%clk 0:00:29.3]} 28... Nxe5 {[%clk 0:01:24.4]}
29. Qxe5 {[%clk 0:00:29.9]} 29... Qe3+ {[%clk 0:01:24.6]} 30. Qxe3 {[%clk
0:00:29.4]} 30... dxe3 {[%clk 0:01:24]} 31. Ng3 {[%clk 0:00:26.7]} 31... Rf2
{[%clk 0:01:22.1]} 32. a3 {[%clk 0:00:15.3]} 32... Rc2 {[%clk 0:01:19.7]} 0-1

[Event "Late-Titled-Tuesday-Blitz-June-04-2024"]
[Site "Chess.com"]
[Date "2024.06.04"]
[Round "2"]
[White "AradNazari"]
[Black "Viktoker"]
[Result "1-0"]
[WhiteElo "2733"]
[BlackElo "2387"]
[TimeControl "180+1"]
[EndTime "14:16:00 PDT"]
[Termination "AradNazari won by resignation"]

1. e4 {[%clk 0:02:49.9]} 1... e5 {[%clk 0:02:59.6]} 2. f4 {[%clk 0:02:48.6]}
2... d5 {[%clk 0:02:55.5]} 3. exd5 {[%clk 0:02:48.2]} 3... exf4 {[%clk
0:02:55.9]} 4. Nf3 {[%clk 0:02:48.4]} 4... Bd6 {[%clk 0:02:55.4]} 5. d4 {[%clk
0:02:46.1]} 5... Nf6 {[%clk 0:02:55.9]} 6. c4 {[%clk 0:02:46.5]} 6... O-O {[%clk
0:02:55.3]} 7. Nc3 {[%clk 0:02:42.4]} 7... Re8+ {[%clk 0:02:55]} 8. Be2 {[%clk
0:02:43]} 8... c6 {[%clk 0:02:43.5]} 9. c5 {[%clk 0:02:39.7]} 9... Bf8 {[%clk
0:02:43.3]} 10. d6 {[%clk 0:02:39.5]} 10... b6 {[%clk 0:02:43.1]} 11. a3 {[%clk
0:02:22.7]} 11... a5 {[%clk 0:02:37.9]} 12. Rb1 {[%clk 0:02:18.1]} 12... bxc5
{[%clk 0:02:17.7]} 13. dxc5 {[%clk 0:02:19]} 13... Ba6 {[%clk 0:02:17.6]} 14.
O-O {[%clk 0:02:17.7]} 14... Bxe2 {[%clk 0:02:10.8]} 15. Nxe2 {[%clk 0:02:18.6]}
15... Ne4 {[%clk 0:02:02.9]} 16. b4 {[%clk 0:02:11.7]} 16... axb4 {[%clk
0:01:58.8]} 17. axb4 {[%clk 0:02:12.6]} 17... g5 {[%clk 0:01:36.3]} 18. Qd3
{[%clk 0:02:05.4]} 18... Bg7 {[%clk 0:01:33.7]} 19. Nfd4 {[%clk 0:01:57.6]}
19... Qd7 {[%clk 0:01:18.4]} 20. Bb2 {[%clk 0:01:55.7]} 20... Na6 {[%clk
0:01:13.6]} 21. Ba1 {[%clk 0:01:51.3]} 21... f5 {[%clk 0:00:20.6]} 22. Nc3
{[%clk 0:01:42.4]} 22... Kh8 {[%clk 0:00:19.7]} 23. Na4 {[%clk 0:01:41.7]} 23...
Qf7 {[%clk 0:00:15.4]} 24. Nb6 {[%clk 0:01:39.7]} 24... Rab8 {[%clk 0:00:14.4]}
25. Qxa6 {[%clk 0:01:37.7]} 25... Nd2 {[%clk 0:00:10.9]} 26. Nxc6 {[%clk
0:01:35.7]} 26... Nxf1 {[%clk 0:00:09.3]} 27. Rxf1 {[%clk 0:01:34.6]} 27... Bxa1
{[%clk 0:00:08.4]} 28. Qxa1+ {[%clk 0:01:34.1]} 28... Kg8 {[%clk 0:00:08.1]} 29.
d7 {[%clk 0:01:32.8]} 29... Rf8 {[%clk 0:00:07]} 30. Nxb8 {[%clk 0:01:30.6]}
30... Rxb8 {[%clk 0:00:07.9]} 31. Qd4 {[%clk 0:01:30.9]} 31... Rd8 {[%clk
0:00:07.5]} 32. c6 {[%clk 0:01:31.4]} 1-0

[Event "Late-Titled-Tuesday-Blitz-June-04-2024"]
[Site "Chess.com"]
[Date "2024.06.04"]
[Round "2"]
[White "profedechess93"]
[Black "TheAlienParty"]
[Result "0-1"]
[WhiteElo "2611"]
[BlackElo "2384"]
[TimeControl "180+1"]
[EndTime "14:16:02 PDT"]
[Termination "TheAlienParty won by resignation"]

1. e4 {[%clk 0:03:00.9]} 1... e5 {[%clk 0:02:58.1]} 2. Nf3 {[%clk 0:03:00.3]}
2... Nc6 {[%clk 0:02:57.7]} 3. Bc4 {[%clk 0:03:00.3]} 3... Bc5 {[%clk
0:02:57.3]} 4. b4 {[%clk 0:02:59.7]} 4... Bxb4 {[%clk 0:02:55.5]} 5. c3 {[%clk
0:03:00.1]} 5... Bc5 {[%clk 0:02:50.7]} 6. d4 {[%clk 0:03:00.4]} 6... exd4
{[%clk 0:02:47.2]} 7. cxd4 {[%clk 0:03:01.3]} 7... Bb4+ {[%clk 0:02:46.9]} 8.
Kf1 {[%clk 0:03:00.6]} 8... Nf6 {[%clk 0:02:45.2]} 9. d5 {[%clk 0:02:55.2]} 9...
Na5 {[%clk 0:02:41.3]} 10. Bd3 {[%clk 0:02:54.6]} 10... b6 {[%clk 0:02:33.8]}
11. Bb2 {[%clk 0:02:41]} 11... O-O {[%clk 0:02:28.8]} 12. Nd4 {[%clk 0:01:24.8]}
12... Re8 {[%clk 0:02:21.3]} 13. Qf3 {[%clk 0:01:21.9]} 13... Bd6 {[%clk
0:02:11.8]} 14. Nf5 {[%clk 0:01:15.3]} 14... Be5 {[%clk 0:02:11]} 15. Bxe5
{[%clk 0:01:15]} 15... Rxe5 {[%clk 0:02:10.4]} 16. Qg3 {[%clk 0:01:15.5]} 16...
Rxf5 {[%clk 0:02:07.2]} 17. exf5 {[%clk 0:01:16.4]} 17... Nxd5 {[%clk
0:02:05.8]} 18. Qe5 {[%clk 0:01:11.4]} 18... Bb7 {[%clk 0:01:58.4]} 19. Nd2
{[%clk 0:01:04.4]} 19... d6 {[%clk 0:01:57.8]} 20. Qb2 {[%clk 0:00:48.9]} 20...
Qg5 {[%clk 0:01:41]} 21. Nf3 {[%clk 0:00:38.7]} 21... Qh5 {[%clk 0:01:34.2]} 22.
Re1 {[%clk 0:00:36.6]} 22... Nf4 {[%clk 0:01:32.5]} 23. Be4 {[%clk 0:00:35.8]}
23... Bxe4 {[%clk 0:01:31.4]} 24. Rxe4 {[%clk 0:00:36.7]} 24... Qxf5 {[%clk
0:01:31.1]} 25. Rd4 {[%clk 0:00:18.5]} 25... c5 {[%clk 0:01:27.7]} 26. Ra4
{[%clk 0:00:13.5]} 26... Re8 {[%clk 0:01:19.4]} 27. Ne1 {[%clk 0:00:13.3]} 27...
Rxe1+ {[%clk 0:01:13.9]} 28. Kxe1 {[%clk 0:00:14.2]} 28... Nd3+ {[%clk
0:01:13.3]} 0-1

[Event "Late-Titled-Tuesday-Blitz-June-04-2024"]
[Site "Chess.com"]
[Date "2024.06.04"]
[Round "2"]
[White "McCarthyStone"]
[Black "ilya2700"]
[Result "0-1"]
[WhiteElo "2450"]
[BlackElo "2210"]
[TimeControl "180+1"]
[EndTime "14:16:02 PDT"]
[Termination "ilya2700 won by checkmate"]

1. b3 {[%clk 0:02:57.5]} 1... e5 {[%clk 0:02:58.2]} 2. Bb2 {[%clk 0:02:58.4]}
2... Nc6 {[%clk 0:02:58.4]} 3. e3 {[%clk 0:02:58.7]} 3... Nf6 {[%clk 0:02:57.6]}
4. Bb5 {[%clk 0:02:58.8]} 4... d6 {[%clk 0:02:53.4]} 5. d4 {[%clk 0:02:56.5]}
5... Bd7 {[%clk 0:02:51.3]} 6. Nf3 {[%clk 0:02:55.5]} 6... e4 {[%clk 0:02:35.6]}
7. Nfd2 {[%clk 0:02:55.5]} 7... d5 {[%clk 0:02:35.9]} 8. c4 {[%clk 0:02:56.1]}
8... a6 {[%clk 0:02:30.3]} 9. Ba4 {[%clk 0:02:55.2]} 9... Rb8 {[%clk 0:02:22.9]}
10. cxd5 {[%clk 0:02:54.2]} 10... Nxd5 {[%clk 0:02:23.4]} 11. Bxc6 {[%clk
0:02:47]} 11... Bxc6 {[%clk 0:02:24.3]} 12. O-O {[%clk 0:02:00.7]} 12... f5
{[%clk 0:02:15.3]} 13. Nc4 {[%clk 0:01:52.4]} 13... Bd6 {[%clk 0:02:10.4]} 14.
Qh5+ {[%clk 0:01:51.9]} 14... g6 {[%clk 0:02:09.8]} 15. Qe2 {[%clk 0:01:48.6]}
15... f4 {[%clk 0:02:03.9]} 16. Nxd6+ {[%clk 0:01:18.8]} 16... Qxd6 {[%clk
0:02:03.2]} 17. exf4 {[%clk 0:01:19.3]} 17... Nxf4 {[%clk 0:02:04.1]} 18. Qe3
{[%clk 0:01:16.2]} 18... O-O {[%clk 0:01:59.6]} 19. Ba3 {[%clk 0:01:15.4]} 19...
Qe6 {[%clk 0:01:53.2]} 20. Bxf8 {[%clk 0:01:14.7]} 20... Qg4 {[%clk 0:01:47.2]}
21. g3 {[%clk 0:01:08.6]} 21... Nh3+ {[%clk 0:01:45.7]} 22. Kg2 {[%clk
0:00:56.3]} 22... Rxf8 {[%clk 0:01:44.8]} 23. Nc3 {[%clk 0:00:52.7]} 23... Rf3
{[%clk 0:01:35.2]} 24. Qh6 {[%clk 0:00:35.8]} 24... Rxc3 {[%clk 0:01:21.4]} 25.
d5 {[%clk 0:00:20.6]} 25... Qf3+ {[%clk 0:01:04.1]} 26. Kxh3 {[%clk 0:00:18.2]}
26... Bd7+ {[%clk 0:01:04.6]} 27. Kh4 {[%clk 0:00:17.5]} 27... Qg4# {[%clk
0:01:05.2]} 0-1

[Event "Late-Titled-Tuesday-Blitz-June-04-2024"]
[Site "Chess.com"]
[Date "2024.06.04"]
[Round "2"]
[White "ACollins05"]
[Black "MrEscacs"]
[Result "1-0"]
[WhiteElo "2450"]
[BlackElo "2132"]
[TimeControl "180+1"]
[EndTime "14:16:02 PDT"]
[Termination "ACollins05 won by resignation"]

1. Nf3 {[%clk 0:03:00.9]} 1... Nf6 {[%clk 0:02:59.2]} 2. e3 {[%clk 0:02:59.6]}
2... g6 {[%clk 0:02:58.9]} 3. b3 {[%clk 0:02:59.6]} 3... Bg7 {[%clk 0:02:59.2]}
4. Bb2 {[%clk 0:03:00.5]} 4... O-O {[%clk 0:02:59.2]} 5. d4 {[%clk 0:03:01]}
5... d5 {[%clk 0:02:58.9]} 6. c4 {[%clk 0:03:00.8]} 6... b6 {[%clk 0:02:47.1]}
7. Be2 {[%clk 0:03:00]} 7... Bb7 {[%clk 0:02:47.4]} 8. O-O {[%clk 0:03:00.2]}
8... Nbd7 {[%clk 0:02:44.4]} 9. Nbd2 {[%clk 0:02:59.4]} 9... c5 {[%clk
0:02:43.8]} 10. Rc1 {[%clk 0:02:59.9]} 10... cxd4 {[%clk 0:02:39.1]} 11. Nxd4
{[%clk 0:02:59.3]} 11... Nc5 {[%clk 0:02:14.3]} 12. N4f3 {[%clk 0:02:43.8]}
12... Re8 {[%clk 0:02:06.7]} 13. cxd5 {[%clk 0:02:43.7]} 13... Qxd5 {[%clk
0:01:54.7]} 14. Nc4 {[%clk 0:02:41.9]} 14... Rad8 {[%clk 0:01:48.4]} 15. Qc2
{[%clk 0:02:41.9]} 15... Qe4 {[%clk 0:01:40.8]} 16. Qxe4 {[%clk 0:02:38.5]}
16... Bxe4 {[%clk 0:01:28.1]} 17. Rfd1 {[%clk 0:02:38.3]} 17... h6 {[%clk
0:01:11.7]} 18. h3 {[%clk 0:02:33]} 18... Bxf3 {[%clk 0:01:02.4]} 19. gxf3
{[%clk 0:02:22.6]} 19... Ne6 {[%clk 0:00:48.1]} 20. Ne5 {[%clk 0:02:21.5]} 20...
Nh5 {[%clk 0:00:31.7]} 21. f4 {[%clk 0:02:21]} 21... Rxd1+ {[%clk 0:00:29.6]}
22. Rxd1 {[%clk 0:02:20.2]} 22... Rd8 {[%clk 0:00:29.5]} 23. Rxd8+ {[%clk
0:02:14.2]} 23... Nxd8 {[%clk 0:00:29.3]} 24. Bxh5 {[%clk 0:02:14.2]} 24... gxh5
{[%clk 0:00:30.2]} 25. Kf1 {[%clk 0:02:13.6]} 25... Bf6 {[%clk 0:00:23.3]} 26.
Ke2 {[%clk 0:02:13.3]} 26... Kf8 {[%clk 0:00:22.4]} 27. Nd7+ {[%clk 0:02:11.6]}
27... Kg7 {[%clk 0:00:22.7]} 28. Bxf6+ {[%clk 0:02:08.6]} 28... exf6 {[%clk
0:00:23.2]} 29. Kd3 {[%clk 0:02:07]} 29... Kg6 {[%clk 0:00:22.3]} 30. Ke4 {[%clk
0:02:06.4]} 30... Nc6 {[%clk 0:00:20.6]} 31. a3 {[%clk 0:02:01.3]} 31... Ne7
{[%clk 0:00:19.9]} 32. Nb8 {[%clk 0:01:58.3]} 32... Kg7 {[%clk 0:00:13.6]} 33.
b4 {[%clk 0:01:56.1]} 33... Kf8 {[%clk 0:00:13.9]} 34. b5 {[%clk 0:01:56.4]}
34... Ke8 {[%clk 0:00:14.3]} 35. Na6 {[%clk 0:01:54.9]} 35... Kd7 {[%clk
0:00:13.6]} 36. Nb4 {[%clk 0:01:55.3]} 36... Kd6 {[%clk 0:00:13.1]} 37. Nd3
{[%clk 0:01:52.8]} 37... f5+ {[%clk 0:00:11.8]} 38. Kd4 {[%clk 0:01:52.7]} 38...
Ng6 {[%clk 0:00:09.3]} 39. Ne5 {[%clk 0:01:50.3]} 39... Nxe5 {[%clk 0:00:09.1]}
40. fxe5+ {[%clk 0:01:51.2]} 40... Ke6 {[%clk 0:00:09.5]} 41. f4 {[%clk
0:01:51]} 41... h4 {[%clk 0:00:08.7]} 42. Kc4 {[%clk 0:01:50.4]} 42... f6 {[%clk
0:00:08.4]} 43. exf6 {[%clk 0:01:49.7]} 43... Kxf6 {[%clk 0:00:08.8]} 44. Kd5
{[%clk 0:01:50.4]} 44... Ke7 {[%clk 0:00:08.3]} 45. Ke5 {[%clk 0:01:47.5]} 1-0